{"text_format":"3","workbook":"xlsx","n_sheets":7,"sheets":["Pirmdiena","Otrdiena","Trešdiena","Ceturtdiena","Piektdiena","Sestdiena","Svētdiena"],"not_rendered":{"defined_names":24},"read":"whole","date_system":"1900"}

{"sheet":"Pirmdiena","index":0,"n_rows":10,"n_cols":13,"rows_kept":10,"merged":[[1,1,2,1],[1,2,1,10],[1,11,1,12],[2,2,2,10],[2,11,2,12]]}
[null,"MAIŅU GRAFIKS"]
[null,"PIRMDIENA","Nedēļai no: ",{"$nulls":8},"DATUMS"]
[null,null,"Nodaļas nosaukums: ",{"$nulls":8},"NODAĻA"]
[null,"Darbinieka vārds, uzvārds","07:00","08:00","09:00","10:00","11:00","12:00","13:00","14:00","15:00","Slims?","KOPSUMMA"]
[null,"Lauris F","vadītājs","vadītājs","vadītājs","vadītājs","vadītājs","vadītājs","vadītājs","vadītājs","vadītājs",null,{"$f":"IFERROR(COUNTIF(Pirmdiena[[#This Row],[07:00]:[15:00]],\"*\"),\"\")","v":9}]
[null,"Toms J",null,"kasieris","kasieris","kasieris","kasieris",{"$nulls":5},{"$f":"IFERROR(COUNTIF(Pirmdiena[[#This Row],[07:00]:[15:00]],\"*\"),\"\")","v":4}]
[null,"Juris S",null,"reģistratūra","reģistratūra","reģistratūra","reģistratūra ","reģistratūra","reģistratūra","reģistratūra",null,null,{"$f":"IFERROR(COUNTIF(Pirmdiena[[#This Row],[07:00]:[15:00]],\"*\"),\"\")","v":7}]
[null,"Jānis M",null,"reģistratūra","reģistratūra","reģistratūra","reģistratūra ","reģistratūra","reģistratūra","reģistratūra",null,null,{"$f":"IFERROR(COUNTIF(Pirmdiena[[#This Row],[07:00]:[15:00]],\"*\"),\"\")","v":7}]
[null,"Andris P",{"$nulls":10},{"$f":"IFERROR(COUNTIF(Pirmdiena[[#This Row],[07:00]:[15:00]],\"*\"),\"\")","v":0}]
[null,"Terēze A",{"$nulls":5},"kasieris","kasieris","kasieris","kasieris",null,{"$f":"IFERROR(COUNTIF(Pirmdiena[[#This Row],[07:00]:[15:00]],\"*\"),\"\")","v":4}]

{"sheet":"Otrdiena","index":1,"n_rows":10,"n_cols":13,"rows_kept":10,"merged":[[1,1,2,1],[1,2,1,10],[1,11,1,12],[2,2,2,10],[2,11,2,12]]}
[null,{"$f":"MAIŅU_GRAFIKA_nosaukums","v":"MAIŅU GRAFIKS"}]
[null,"OTRDIENA","Nedēļai no: ",{"$nulls":8},{"$f":"DATUMS","v":"DATUMS"}]
[null,null,"Nodaļas nosaukums: ",{"$nulls":8},{"$f":"NODAĻA","v":"NODAĻA"}]
[null,"Darbinieka vārds, uzvārds","07:00","08:00","09:00","10:00","11:00","12:00","13:00","14:00","15:00","Slims?","KOPSUMMA"]
[null,"Lauris F","vadītājs","vadītājs","vadītājs","vadītājs","vadītājs","vadītājs","vadītājs","vadītājs","vadītājs",null,{"$f":"IFERROR(COUNTIF(Otrdiena[[#This Row],[07:00]:[15:00]],\"*\"),\"\")","v":9}]
[null,"Toms J",null,"kasieris","kasieris","kasieris","kasieris",{"$nulls":5},{"$f":"IFERROR(COUNTIF(Otrdiena[[#This Row],[07:00]:[15:00]],\"*\"),\"\")","v":4}]
[null,"Juris S",null,"reģistratūra","reģistratūra","reģistratūra","reģistratūra ","reģistratūra","reģistratūra","reģistratūra",null,null,{"$f":"IFERROR(COUNTIF(Otrdiena[[#This Row],[07:00]:[15:00]],\"*\"),\"\")","v":7}]
[null,"Jānis M",null,"reģistratūra","reģistratūra","reģistratūra","reģistratūra ","reģistratūra","reģistratūra","reģistratūra",null,null,{"$f":"IFERROR(COUNTIF(Otrdiena[[#This Row],[07:00]:[15:00]],\"*\"),\"\")","v":7}]
[null,"Andris P",{"$nulls":9},"Slimība",{"$f":"IFERROR(COUNTIF(Otrdiena[[#This Row],[07:00]:[15:00]],\"*\"),\"\")","v":0}]
[null,"Terēze A",{"$nulls":5},"kasieris","kasieris","kasieris","kasieris",null,{"$f":"IFERROR(COUNTIF(Otrdiena[[#This Row],[07:00]:[15:00]],\"*\"),\"\")","v":4}]

{"sheet":"Trešdiena","index":2,"n_rows":10,"n_cols":13,"rows_kept":10,"merged":[[1,1,2,1],[1,2,1,10],[1,11,1,12],[2,2,2,10],[2,11,2,12]]}
[null,{"$f":"MAIŅU_GRAFIKA_nosaukums","v":"MAIŅU GRAFIKS"}]
[null,"TREŠDIENA","Nedēļai no: ",{"$nulls":8},{"$f":"DATUMS","v":"DATUMS"}]
[null,null,"Nodaļas nosaukums: ",{"$nulls":8},{"$f":"NODAĻA","v":"NODAĻA"}]
[null,"Darbinieka vārds, uzvārds","07:00","08:00","09:00","10:00","11:00","12:00","13:00","14:00","15:00","Slims?","KOPSUMMA"]
[null,"Lauris F","vadītājs","vadītājs","vadītājs","vadītājs","vadītājs","vadītājs","vadītājs","vadītājs","vadītājs",null,{"$f":"IFERROR(COUNTIF(Trešdiena[[#This Row],[07:00]:[15:00]],\"*\"),\"\")","v":9}]
[null,"Toms J",null,"kasieris","kasieris","kasieris","kasieris",{"$nulls":5},{"$f":"IFERROR(COUNTIF(Trešdiena[[#This Row],[07:00]:[15:00]],\"*\"),\"\")","v":4}]
[null,"Juris S",null,"reģistratūra","reģistratūra","reģistratūra","reģistratūra ","reģistratūra","reģistratūra","reģistratūra",null,null,{"$f":"IFERROR(COUNTIF(Trešdiena[[#This Row],[07:00]:[15:00]],\"*\"),\"\")","v":7}]
[null,"Jānis M",null,"reģistratūra","reģistratūra","reģistratūra","reģistratūra ","reģistratūra","reģistratūra","reģistratūra",null,null,{"$f":"IFERROR(COUNTIF(Trešdiena[[#This Row],[07:00]:[15:00]],\"*\"),\"\")","v":7}]
[null,"Andris P",{"$nulls":9},"Slimība",{"$f":"IFERROR(COUNTIF(Trešdiena[[#This Row],[07:00]:[15:00]],\"*\"),\"\")","v":0}]
[null,"Terēze A",{"$nulls":5},"kasieris","kasieris","kasieris","kasieris",null,{"$f":"IFERROR(COUNTIF(Trešdiena[[#This Row],[07:00]:[15:00]],\"*\"),\"\")","v":4}]

{"sheet":"Ceturtdiena","index":3,"n_rows":10,"n_cols":13,"rows_kept":10,"merged":[[1,1,2,1],[1,2,1,10],[1,11,1,12],[2,2,2,10],[2,11,2,12]]}
[null,{"$f":"MAIŅU_GRAFIKA_nosaukums","v":"MAIŅU GRAFIKS"}]
[null,"CETURTDIENA","Nedēļai no: ",{"$nulls":8},{"$f":"DATUMS","v":"DATUMS"}]
[null,null,"Nodaļas nosaukums: ",{"$nulls":8},{"$f":"NODAĻA","v":"NODAĻA"}]
[null,"Darbinieka vārds, uzvārds","07:00","08:00","09:00","10:00","11:00","12:00","13:00","14:00","15:00","Slims?","KOPSUMMA"]
[null,"Lauris F","vadītājs","vadītājs","vadītājs","vadītājs","vadītājs","vadītājs","vadītājs","vadītājs","vadītājs",null,{"$f":"IFERROR(COUNTIF(Ceturtdiena[[#This Row],[07:00]:[15:00]],\"*\"),\"\")","v":9}]
[null,"Toms J",null,"kasieris","kasieris","kasieris","kasieris",{"$nulls":5},{"$f":"IFERROR(COUNTIF(Ceturtdiena[[#This Row],[07:00]:[15:00]],\"*\"),\"\")","v":4}]
[null,"Juris S",null,"reģistratūra","reģistratūra","reģistratūra","reģistratūra ","reģistratūra","reģistratūra","reģistratūra",null,null,{"$f":"IFERROR(COUNTIF(Ceturtdiena[[#This Row],[07:00]:[15:00]],\"*\"),\"\")","v":7}]
[null,"Jānis M",null,"reģistratūra","reģistratūra","reģistratūra","reģistratūra ","reģistratūra","reģistratūra","reģistratūra",null,null,{"$f":"IFERROR(COUNTIF(Ceturtdiena[[#This Row],[07:00]:[15:00]],\"*\"),\"\")","v":7}]
[null,"Andris P",{"$nulls":9},"Slimība",{"$f":"IFERROR(COUNTIF(Ceturtdiena[[#This Row],[07:00]:[15:00]],\"*\"),\"\")","v":0}]
[null,"Terēze A",{"$nulls":5},"kasieris","kasieris","kasieris","kasieris",null,{"$f":"IFERROR(COUNTIF(Ceturtdiena[[#This Row],[07:00]:[15:00]],\"*\"),\"\")","v":4}]

{"sheet":"Piektdiena","index":4,"n_rows":10,"n_cols":13,"rows_kept":10,"merged":[[1,1,2,1],[1,2,1,10],[1,11,1,12],[2,2,2,10],[2,11,2,12]]}
[null,{"$f":"MAIŅU_GRAFIKA_nosaukums","v":"MAIŅU GRAFIKS"}]
[null,"PIEKTDIENA","Nedēļai no: ",{"$nulls":8},{"$f":"DATUMS","v":"DATUMS"}]
[null,null,"Nodaļas nosaukums: ",{"$nulls":8},{"$f":"NODAĻA","v":"NODAĻA"}]
[null,"Darbinieka vārds, uzvārds","07:00","08:00","09:00","10:00","11:00","12:00","13:00","14:00","15:00","Slims?","KOPSUMMA"]
[null,"Lauris F","vadītājs","vadītājs","vadītājs","vadītājs","vadītājs","vadītājs","vadītājs","vadītājs","vadītājs",null,{"$f":"IFERROR(COUNTIF(Piektdiena[[#This Row],[07:00]:[15:00]],\"*\"),\"\")","v":9}]
[null,"Toms J",null,"kasieris","kasieris","kasieris","kasieris",{"$nulls":5},{"$f":"IFERROR(COUNTIF(Piektdiena[[#This Row],[07:00]:[15:00]],\"*\"),\"\")","v":4}]
[null,"Juris S",null,"reģistratūra","reģistratūra","reģistratūra","reģistratūra ","reģistratūra","reģistratūra","reģistratūra",null,null,{"$f":"IFERROR(COUNTIF(Piektdiena[[#This Row],[07:00]:[15:00]],\"*\"),\"\")","v":7}]
[null,"Jānis M",null,"reģistratūra","reģistratūra","reģistratūra","reģistratūra ","reģistratūra","reģistratūra","reģistratūra",null,null,{"$f":"IFERROR(COUNTIF(Piektdiena[[#This Row],[07:00]:[15:00]],\"*\"),\"\")","v":7}]
[null,"Andris P",{"$nulls":9},"Slimība",{"$f":"IFERROR(COUNTIF(Piektdiena[[#This Row],[07:00]:[15:00]],\"*\"),\"\")","v":0}]
[null,"Terēze A",{"$nulls":5},"kasieris","kasieris","kasieris","kasieris",null,{"$f":"IFERROR(COUNTIF(Piektdiena[[#This Row],[07:00]:[15:00]],\"*\"),\"\")","v":4}]

{"sheet":"Sestdiena","index":5,"n_rows":10,"n_cols":13,"rows_kept":10,"merged":[[1,1,2,1],[1,2,1,10],[1,11,1,12],[2,2,2,10],[2,11,2,12]]}
[null,{"$f":"MAIŅU_GRAFIKA_nosaukums","v":"MAIŅU GRAFIKS"}]
[null,"SESTDIENA","Nedēļai no: ",{"$nulls":8},{"$f":"DATUMS","v":"DATUMS"}]
[null,null,"Nodaļas nosaukums: ",{"$nulls":8},{"$f":"NODAĻA","v":"NODAĻA"}]
[null,"Darbinieka vārds, uzvārds","07:00","08:00","09:00","10:00","11:00","12:00","13:00","14:00","15:00","Slims?","KOPSUMMA"]
[null,"Lauris F","vadītājs","vadītājs","vadītājs","vadītājs","vadītājs","vadītājs","vadītājs","vadītājs","vadītājs",null,{"$f":"IFERROR(COUNTIF(Sestdiena[[#This Row],[07:00]:[15:00]],\"*\"),\"\")","v":9}]
[null,"Toms J",null,"kasieris","kasieris","kasieris","kasieris",{"$nulls":5},{"$f":"IFERROR(COUNTIF(Sestdiena[[#This Row],[07:00]:[15:00]],\"*\"),\"\")","v":4}]
[null,"Juris S",null,"reģistratūra","reģistratūra","reģistratūra","reģistratūra ","reģistratūra","reģistratūra","reģistratūra",null,null,{"$f":"IFERROR(COUNTIF(Sestdiena[[#This Row],[07:00]:[15:00]],\"*\"),\"\")","v":7}]
[null,"Jānis M",null,"reģistratūra","reģistratūra","reģistratūra","reģistratūra ","reģistratūra","reģistratūra","reģistratūra",null,null,{"$f":"IFERROR(COUNTIF(Sestdiena[[#This Row],[07:00]:[15:00]],\"*\"),\"\")","v":7}]
[null,"Andris P",{"$nulls":9},"Slimība",{"$f":"IFERROR(COUNTIF(Sestdiena[[#This Row],[07:00]:[15:00]],\"*\"),\"\")","v":0}]
[null,"Terēze A",{"$nulls":5},"kasieris","kasieris","kasieris","kasieris",null,{"$f":"IFERROR(COUNTIF(Sestdiena[[#This Row],[07:00]:[15:00]],\"*\"),\"\")","v":4}]

{"sheet":"Svētdiena","index":6,"n_rows":10,"n_cols":13,"rows_kept":10,"merged":[[1,1,2,1],[1,2,1,10],[1,11,1,12],[2,2,2,10],[2,11,2,12]]}
[null,{"$f":"MAIŅU_GRAFIKA_nosaukums","v":"MAIŅU GRAFIKS"}]
[null,"SVĒTDIENA","Nedēļai no: ",{"$nulls":8},{"$f":"DATUMS","v":"DATUMS"}]
[null,null,"Nodaļas nosaukums: ",{"$nulls":8},{"$f":"NODAĻA","v":"NODAĻA"}]
[null,"Darbinieka vārds, uzvārds","07:00","08:00","09:00","10:00","11:00","12:00","13:00","14:00","15:00","Slims?","KOPSUMMA"]
[null,"Lauris F","vadītājs","vadītājs","vadītājs","vadītājs","vadītājs","vadītājs","vadītājs","vadītājs","vadītājs",null,{"$f":"IFERROR(COUNTIF(Svētdiena[[#This Row],[07:00]:[15:00]],\"*\"),\"\")","v":9}]
[null,"Toms J",null,"kasieris","kasieris","kasieris","kasieris",{"$nulls":5},{"$f":"IFERROR(COUNTIF(Svētdiena[[#This Row],[07:00]:[15:00]],\"*\"),\"\")","v":4}]
[null,"Juris S",null,"reģistratūra","reģistratūra","reģistratūra","reģistratūra ","reģistratūra","reģistratūra","reģistratūra",null,null,{"$f":"IFERROR(COUNTIF(Svētdiena[[#This Row],[07:00]:[15:00]],\"*\"),\"\")","v":7}]
[null,"Jānis M",null,"reģistratūra","reģistratūra","reģistratūra","reģistratūra ","reģistratūra","reģistratūra","reģistratūra",null,null,{"$f":"IFERROR(COUNTIF(Svētdiena[[#This Row],[07:00]:[15:00]],\"*\"),\"\")","v":7}]
[null,"Andris P",{"$nulls":9},"Slimība",{"$f":"IFERROR(COUNTIF(Svētdiena[[#This Row],[07:00]:[15:00]],\"*\"),\"\")","v":0}]
[null,"Terēze A",{"$nulls":5},"kasieris","kasieris","kasieris","kasieris",null,{"$f":"IFERROR(COUNTIF(Svētdiena[[#This Row],[07:00]:[15:00]],\"*\"),\"\")","v":4}]